fUSD/lending_fUSD_20250612
["ID","MTS","AMOUNT","RATE_DAILY","PERIOD"]
[365487332,1749701432628,-531.5774476,0.00018696,2]
[365487333,1749701432638,-500.0,0.00018696,2]
[365487334,1749701432648,-500.0,0.00018696,2]
[365487335,1749701432658,-590.65831512,0.00018696,2]
[365487336,1749701432668,-500.0,0.00018696,2]
[365487337,1749701432678,-500.0,0.00018696,2]
[365487338,1749701432687,-464.25619793,0.00018696,2]
[365487339,1749701432698,-514.39503844,0.00018696,2]
[365487340,1749701432708,-500.0,0.00018696,2]
[365487341,1749701432718,-500.0,0.00018696,2]
[365487342,1749701432727,-500.0,0.00018696,2]
[365487343,1749701432738,-555.03465119,0.00018696,2]
[365487344,1749701432748,-500.0,0.00018696,2]
[365487345,1749701432760,-500.0,0.00018696,2]
[365487346,1749701432770,-500.0,0.00018696,2]
[365487348,1749701432781,-500.0,0.00018696,2]
[365487350,1749701432790,-500.0,0.00018696,2]
[365487351,1749701432801,-500.0,0.00018696,2]
[365487352,1749701432810,-500.0,0.00018696,2]
[365487353,1749701432820,-223.90494653,0.00018696,2]
[365487354,1749701432830,-500.0,0.00018696,2]
[365487355,1749701432840,-500.0,0.00018696,2]
[365487356,1749701432850,-500.0,0.00018696,2]
[365487357,1749701432860,-2347.87260389,0.00018698,2]
[365487358,1749701432870,-2434.74389024,0.00018753,2]
[365487359,1749701432881,-1000.0,0.00018782,2]
[365487360,1749701432891,-301.72,0.00018782,2]
[365487361,1749701432900,-163.35,0.00018787,2]
[365487362,1749701432910,-162.95,0.00018787,2]
[365487363,1749701432920,-163.35,0.000188,2]
[365487364,1749701432930,-1328.66315256,0.00018808,2]
[365487365,1749701432944,-1196.16626161,0.00018808,2]
[365487366,1749701432953,-2618.2481025,0.00018863,2]
[365487367,1749701432963,-394.05866019,0.000189,2]
[365487368,1749701432973,-500.0,0.00018905,2]
[365487369,1749701432983,-1795.74249389,0.00018918,2]
[365487370,1749701432992,-831.56907272,0.0001907,2]
[365487371,1749701433004,-176.52666353,0.00019078,2]
[365487372,1749701433014,-1704.25628029,0.00019078,2]
[365487373,1749701433023,-209.09317378,0.00019078,2]
[365487374,1749701433033,-150.67,0.00019078,2]
[365487375,1749701433043,-163.35,0.00019078,2]
[365487376,1749701433055,-7995.70724539,0.00019149,2]
[365487377,1749701433065,-1704.25628026,0.00019169,2]
[365487378,1749701433075,-500.0,0.00019173,2]
[365487379,1749701433085,-501.84441112,0.00019173,2]
[365487380,1749701433098,-500.0,0.00019173,2]
[365487381,1749701433109,-501.38421696,0.00019173,2]
[365487382,1749701433119,-512.9654609,0.00019173,2]
[365487383,1749701433129,-500.0,0.00019173,2]
[365487384,1749701433140,-501.97534187,0.00019173,2]
[365487385,1749701433150,-500.0,0.00019173,2]
[365487386,1749701433161,-500.0,0.00019173,2]
[365487387,1749701433172,-504.10246529,0.00019173,2]
[365487388,1749701433182,-500.0,0.00019173,2]
[365487389,1749701433192,-187.30111438,0.00019173,2]
[365487390,1749701433202,-501.58829197,0.00019173,2]
[365487391,1749701433213,-157.4116316,0.00019173,2]
[365487392,1749701433222,-161.30659417,0.00019173,2]
[365487393,1749701433233,-500.0,0.00019173,2]
[365487394,1749701433242,-504.00328467,0.00019173,2]
[365487395,1749701433253,-500.0,0.00019173,2]
[365487396,1749701433263,-308.71290032,0.00019173,2]
[365487397,1749701433274,-323.44235867,0.00019177,2]
[365487398,1749701433284,-174.88022552,0.00019177,2]
[365487399,1749701433294,-202.21703529,0.00019177,2]
[365487400,1749701433304,-202.4001303,0.00019177,2]
[365487401,1749701433315,-197.1663994,0.00019177,2]
[365487402,1749701433325,-201.19221987,0.00019177,2]
[365487403,1749701433334,-252.95524536,0.00019178,2]
[365487404,1749701433344,-480.0,0.00019178,2]
[365487405,1749701433353,-430.46341964,0.00019178,2]
[365487406,1749701433363,-490.0,0.00019178,2]
[365487407,1749701433373,-490.0,0.00019178,2]
[365487408,1749701433383,-490.0,0.00019178,2]
[365487409,1749701433392,-480.0,0.00019178,2]
[365487410,1749701433403,-490.0,0.00019178,2]
[365487411,1749701433413,-485.6175955,0.00019178,2]
[365487412,1749701433423,-483.40587271,0.00019178,2]
[365487413,1749701433433,-490.0,0.00019178,2]
[365487414,1749701433443,-490.0,0.00019178,2]
[365487415,1749701433453,-2140.81616,0.00019178,2]
[365487416,1749701433463,-160.484491,0.00019178,2]
[365487417,1749701433473,-1871.654098,0.00019178,2]
[365487418,1749701433482,-225.77942352,0.00019178,2]
[365487419,1749701433492,-488.29843537,0.00019178,2]
[365487420,1749701433504,-490.0,0.00019178,2]
[365487421,1749701433514,-323.61521952,0.00019178,2]
[365487422,1749701433523,-630.06,0.00019178,2]
[365487423,1749701433533,-490.0,0.00019178,2]
[365487424,1749701433543,-480.0,0.00019178,2]
[365487425,1749701433552,-437.45979414,0.00019178,2]
[365487426,1749701433562,-490.0,0.00019178,2]
[365487427,1749701433572,-146.64905878,0.00019178,2]
[365487432,1749701438244,-1241.83745801,0.00019073,2]
[365487433,1749701438301,-379.26382355,0.00019073,2]
[365487434,1749701438315,-838.48491844,0.00019073,2]
[365487435,1749701438326,-418.58033033,0.00019178,2]
[365487436,1749701438335,-490.0,0.00019178,2]
[365487437,1749701438347,-430.49854847,0.00019178,2]
[365487438,1749701438356,-480.0,0.00019178,2]
[365487439,1749701438366,-490.0,0.00019178,2]
[365487440,1749701438375,-490.0,0.00019178,2]
[365487441,1749701438384,-312.9904179,0.00019178,2]
[365487442,1749701438394,-490.0,0.00019178,2]
[365487443,1749701438403,-438.42492539,0.00019178,2]
[365487444,1749701438412,-482.05643944,0.00019178,2]
[365487445,1749701438421,-490.0,0.00019178,2]
[365487446,1749701438431,-490.0,0.00019178,2]
[365487447,1749701438440,-490.0,0.00019178,2]
[365487448,1749701438450,-534.37891532,0.00019178,2]
[365487449,1749701438459,-490.0,0.00019178,2]
[365487450,1749701438469,-490.0,0.00019178,2]
[365487451,1749701438478,-300.0,0.00019178,2]
[365487452,1749701438489,-490.0,0.00019178,2]
[365487453,1749701438499,-490.0,0.00019178,2]
[365487454,1749701438509,-484.18098099,0.00019178,2]
[365487455,1749701438519,-490.0,0.00019178,2]
[365487456,1749701438528,-426.10423398,0.00019178,2]
[365487457,1749701438538,-481.64937471,0.00019178,2]
[365487458,1749701438928,-8.35062529,0.00019178,2]
[365487459,1749701438938,-256.47437471,0.00019178,2]
[365487460,1749701439044,-233.52562529,0.00019178,2]
[365487461,1749701439053,-490.0,0.00019178,2]
[365487462,1749701439063,-490.0,0.00019178,2]
[365487463,1749701439072,-490.0,0.00019178,2]
[365487464,1749701439081,-320.33743144,0.00019178,2]
[365487465,1749701439092,-490.0,0.00019178,2]
[365487466,1749701439102,-421.83705581,0.00019178,2]
[365487467,1749701439112,-490.0,0.00019178,2]
[365487468,1749701439121,-267.95174244,0.00019178,2]
[365487469,1749701439157,-222.04825756,0.00019178,2]
[365487470,1749701439168,-98.10015138,0.00019178,2]
[365487481,1749701440598,-8.90908264,0.00019178,2]
[365487482,1749701440634,-372.99076598,0.00019178,2]
[365487483,1749701440643,-490.0,0.00019178,2]
[365487484,1749701440652,-345.68314268,0.00019178,2]
[365487485,1749701440662,-348.68647951,0.00019178,2]
[365487486,1749701440672,-490.0,0.00019178,2]
[365487487,1749701440682,-490.0,0.00019178,2]
[365487488,1749701440691,-490.0,0.00019178,2]
[365487489,1749701440701,-490.0,0.00019178,2]
[365487490,1749701440711,-464.64377552,0.00019178,2]
[365487491,1749701440720,-490.0,0.00019178,2]
[365487492,1749701440730,-317.89732473,0.00019178,2]
[365487493,1749701440739,-498.00188254,0.00019178,2]
[365487494,1749701440749,-490.0,0.00019178,2]
[365487495,1749701440759,-490.0,0.00019178,2]
[365487496,1749701440769,-490.0,0.00019178,2]
[365487497,1749701440779,-490.0,0.00019178,2]
[365487498,1749701440788,-490.0,0.00019178,2]
[365487499,1749701440799,-490.0,0.00019178,2]
[365487500,1749701440808,-490.0,0.00019178,2]
[365487501,1749701440818,-490.0,0.00019178,2]
[365487502,1749701440827,-480.72653695,0.00019178,2]
[365487503,1749701440837,-490.0,0.00019178,2]
[365487504,1749701440846,-491.44712323,0.00019178,2]
[365487505,1749701440857,-490.0,0.00019178,2]
[365487506,1749701440867,-490.0,0.00019178,2]
[365487507,1749701440876,-490.0,0.00019178,2]
[365487508,1749701440885,-68.06959215,0.00019178,2]
[365487509,1749701440899,-411.93040785,0.00019178,2]
[365487510,1749701440909,-490.0,0.00019178,2]
[365487511,1749701440919,-513.89,0.00019178,2]
[365487512,1749701440929,-490.0,0.00019178,2]
[365487513,1749701440939,-490.0,0.00019178,2]
[365487515,1749701440948,-490.0,0.00019178,2]
[365487517,1749701440957,-490.0,0.00019178,2]
[365487519,1749701440968,-490.0,0.00019178,2]
[365487521,1749701440978,-490.0,0.00019178,2]
[365487531,1749701441278,-480.0,0.00019178,2]
[365487532,1749701441288,-480.0,0.00019178,2]
[365487533,1749701441298,-490.0,0.00019178,2]
[365487534,1749701441308,-480.0,0.00019178,2]
[365487535,1749701441318,-490.0,0.00019178,2]
[365487536,1749701441329,-490.0,0.00019178,2]
[365487537,1749701441339,-490.0,0.00019178,2]
[365487538,1749701441349,-490.0,0.00019178,2]
[365487539,1749701441359,-490.0,0.00019178,2]
[365487540,1749701441368,-490.0,0.00019178,2]
[365487541,1749701441378,-480.0,0.00019178,2]
[365487542,1749701441388,-490.0,0.00019178,2]
[365487543,1749701441398,-480.0,0.00019178,2]
[365487544,1749701441407,-490.0,0.00019178,2]
[365487545,1749701441417,-490.0,0.00019178,2]
[365487546,1749701441427,-480.0,0.00019178,2]
[365487547,1749701441437,-460.0,0.00019178,2]
[365487548,1749701441447,-490.0,0.00019178,2]
[365487549,1749701441457,-498.71451072,0.00019178,2]
[365487550,1749701441466,-896.8,0.00019178,2]
[365487551,1749701441476,-466.36994108,0.00019178,2]
[365487552,1749701441486,-464.95983588,0.00019178,2]
[365487553,1749701441495,-480.0,0.00019178,2]
[365487554,1749701441505,-700.21,0.00019178,2]
[365487555,1749701441517,-487.41269983,0.00019178,2]
[365487556,1749701441527,-468.44823123,0.00019178,2]
[365487557,1749701441537,-490.0,0.00019178,2]
[365487558,1749701441547,-490.0,0.00019178,2]
[365487559,1749701441557,-492.15193424,0.00019178,2]
[365487560,1749701441566,-500.65905449,0.00019178,2]
[365487561,1749701441575,-490.0,0.00019178,2]
[365487562,1749701441585,-490.0,0.00019178,2]
[365487563,1749701441595,-490.0,0.00019178,2]
[365487564,1749701441604,-490.0,0.00019178,2]
[365487565,1749701441614,-493.56367379,0.00019178,2]
[365487566,1749701441624,-496.21441031,0.00019178,2]
[365487567,1749701441635,-490.0,0.00019178,2]
[365487568,1749701441645,-498.23543431,0.00019178,2]
[365487569,1749701441654,-490.0,0.00019178,2]
[365487570,1749701441664,-490.0,0.00019178,2]
[365487571,1749701441673,-490.0,0.00019178,2]
[365487572,1749701441684,-490.0,0.00019178,2]
[365487573,1749701441694,-480.0,0.00019178,2]
[365487574,1749701441703,-490.0,0.00019178,2]
[365487575,1749701441713,-466.22880148,0.00019178,2]
[365487576,1749701441723,-480.0,0.00019178,2]
[365487577,1749701441733,-490.0,0.00019178,2]
[365487578,1749701441743,-490.0,0.00019178,2]
[365487579,1749701441753,-490.0,0.00019178,2]
[365487580,1749701441764,-480.0,0.00019178,2]
[365487581,1749701441773,-256.81110754,0.00019178,2]
[365487582,1749701441783,-494.70995239,0.00019178,2]
[365487583,1749701441792,-490.0,0.00019178,2]
[365487584,1749701441801,-1486.29,0.00019178,2]
[365487585,1749701441811,-459.8646699,0.00019178,2]
[365487586,1749701441821,-490.0,0.00019178,2]
[365487587,1749701441831,-793.12,0.00019178,2]
[365487588,1749701441841,-490.0,0.00019178,2]
[365487589,1749701441850,-490.0,0.00019178,2]
[365487590,1749701441860,-490.0,0.00019178,2]
[365487591,1749701441870,-632.54672772,0.00019178,2]
[365487592,1749701441880,-264.40994562,0.00019178,2]
[365487593,1749701441890,-490.0,0.00019178,2]
[365487594,1749701441900,-490.0,0.00019178,2]
[365487595,1749701441910,-498.98404999,0.00019178,2]
[365487596,1749701441920,-490.0,0.00019178,2]
[365487597,1749701441930,-490.0,0.00019178,2]
[365487598,1749701441939,-480.0,0.00019178,2]
[365487599,1749701441948,-490.0,0.00019178,2]
[365487600,1749701441957,-484.38188816,0.00019178,2]
[365487601,1749701441967,-478.22255,0.00019178,2]
[365487602,1749701441976,-490.0,0.00019178,2]
[365487603,1749701441986,-497.63506672,0.00019178,2]
[365487604,1749701441995,-784.6,0.00019178,2]
[365487605,1749701442006,-490.0,0.00019178,2]
[365487606,1749701442017,-486.82183108,0.00019178,2]
[365487607,1749701442027,-580.22,0.00019178,2]
[365487608,1749701442037,-573.16,0.00019178,2]
[365487609,1749701442046,-490.0,0.00019178,2]
[365487610,1749701442056,-480.0,0.00019178,2]
[365487611,1749701442066,-490.0,0.00019178,2]
[365487612,1749701442076,-480.0,0.00019178,2]
[365487613,1749701442086,-480.0,0.00019178,2]
[365487614,1749701442099,-480.0,0.00019178,2]
[365487615,1749701442109,-490.0,0.00019178,2]
[365487616,1749701442118,-470.39400446,0.00019178,2]
[365487617,1749701442128,-492.12817729,0.00019178,2]
[365487618,1749701442138,-832.24,0.00019178,2]
[365487619,1749701442148,-234.78891308,0.00019178,2]
[365487620,1749701442157,-490.0,0.00019178,2]
[365487621,1749701442168,-443.94395814,0.00019178,2]
[365487622,1749701442177,-471.11527277,0.00019178,2]
[365487623,1749701442187,-490.0,0.00019178,2]
[365487624,1749701442197,-501.32050506,0.00019178,2]
[365487625,1749701442206,-405.45164945,0.00019178,2]
[365487626,1749701442216,-480.0,0.00019178,2]
[365487627,1749701442226,-490.0,0.00019178,2]
[365487628,1749701442235,-490.0,0.00019178,2]
[365487629,1749701442245,-490.0,0.00019178,2]
[365487630,1749701442254,-494.64441945,0.00019178,2]
[365487631,1749701442265,-752.68,0.00019178,2]
[365487632,1749701442276,-480.0,0.00019178,2]
[365487633,1749701442286,-826.36,0.00019178,2]
[365487634,1749701442295,-490.0,0.00019178,2]
[365487635,1749701442305,-1409.48,0.00019178,2]
[365487636,1749701442315,-492.21551044,0.00019178,2]
[365487637,1749701442325,-490.0,0.00019178,2]
[365487638,1749701442335,-490.0,0.00019178,2]
[365487639,1749701442345,-490.0,0.00019178,2]
[365487640,1749701442355,-480.0,0.00019178,2]
[365487641,1749701442364,-490.0,0.00019178,2]
[365487642,1749701442374,-490.0,0.00019178,2]
[365487643,1749701442383,-490.0,0.00019178,2]
[365487644,1749701442392,-490.0,0.00019178,2]
[365487645,1749701442402,-443.76159207,0.00019178,2]
[365487646,1749701442411,-1209.35,0.00019178,2]
[365487647,1749701442421,-1236.0,0.00019178,2]
[365487648,1749701442430,-490.0,0.00019178,2]
[365487649,1749701442439,-490.0,0.00019178,2]
[365487650,1749701442449,-486.73521927,0.00019178,2]
[365487651,1749701442458,-490.0,0.00019178,2]
[365487652,1749701442468,-490.0,0.00019178,2]
[365487653,1749701442478,-696.16,0.00019178,2]
[365487654,1749701442487,-583.66,0.00019178,2]
[365487655,1749701442498,-435.97513863,0.00019178,2]
[365487656,1749701442508,-480.0,0.00019178,2]
[365487657,1749701442518,-490.0,0.00019178,2]
[365487658,1749701442528,-496.6695189,0.00019178,2]
[365487659,1749701442537,-442.5195903,0.00019178,2]
[365487660,1749701442547,-490.0,0.00019178,2]
[365487661,1749701442557,-1803.01,0.00019178,2]
[365487662,1749701442566,-843.52,0.00019178,2]
[365487663,1749701442576,-496.19782843,0.00019178,2]
[365487664,1749701442586,-490.0,0.00019178,2]
[365487665,1749701442595,-13.73644253,0.00019178,2]
[365487666,1749701442616,-476.26355747,0.00019178,2]
[365487667,1749701442626,-901.7,0.00019178,2]
[365487668,1749701442635,-469.65467187,0.00019178,2]
[365487669,1749701442645,-1084.16,0.00019178,2]
[365487670,1749701442654,-835.84,0.00019178,2]
[365487671,1749701442664,-505.83904149,0.00019178,2]
[365487672,1749701442674,-490.0,0.00019178,2]
[365487673,1749701442684,-490.0,0.00019178,2]
[365487674,1749701442693,-490.0,0.00019178,2]
[365487675,1749701442703,-490.0,0.00019178,2]
[365487676,1749701442712,-912.83,0.00019178,2]
[365487677,1749701442722,-490.0,0.00019178,2]
[365487678,1749701442731,-490.0,0.00019178,2]
[365487679,1749701442741,-519.80616723,0.00019178,2]
[365487680,1749701442751,-490.0,0.00019178,2]
[365487681,1749701442761,-490.0,0.00019178,2]
[365487682,1749701442772,-490.0,0.00019178,2]
[365487683,1749701442782,-480.0,0.00019178,2]
[365487684,1749701442792,-493.72366129,0.00019178,2]
[365487685,1749701442802,-308.167725,0.00019178,2]
[365487686,1749701442812,-1394.62,0.00019178,2]
[365487687,1749701442822,-490.0,0.00019178,2]
[365487688,1749701442831,-1190.94,0.00019178,2]
[365487689,1749701442841,-470.0,0.00019178,2]
[365487690,1749701442851,-490.0,0.00019178,2]
[365487691,1749701442862,-490.0,0.00019178,2]
[365487692,1749701442872,-488.58107729,0.00019178,2]
[365487693,1749701442882,-1006.16,0.00019178,2]
[365487694,1749701442892,-490.0,0.00019178,2]
[365487695,1749701442902,-490.0,0.00019178,2]
[365487696,1749701442913,-490.0,0.00019178,2]
[365487697,1749701442923,-1070.91,0.00019178,2]
[365487698,1749701442932,-490.0,0.00019178,2]
[365487699,1749701442942,-490.0,0.00019178,2]
[365487700,1749701442952,-494.01765619,0.00019178,2]
[365487701,1749701442962,-490.0,0.00019178,2]
[365487703,1749701442971,-490.0,0.00019178,2]
[365487705,1749701442981,-490.0,0.00019178,2]
[365487706,1749701442991,-490.0,0.00019178,2]
[365487707,1749701443001,-490.0,0.00019178,2]
[365487708,1749701443011,-490.0,0.00019178,2]
[365487709,1749701443020,-490.0,0.00019178,2]
[365487711,1749701443029,-504.2524399,0.00019178,2]
[365487713,1749701443039,-490.0,0.00019178,2]
[365487715,1749701443048,-1216.85,0.00019178,2]
[365487716,1749701443057,-490.0,0.00019178,2]
[365487717,1749701443066,-490.0,0.00019178,2]
[365487718,1749701443075,-490.0,0.00019178,2]
[365487719,1749701443084,-490.0,0.00019178,2]
[365487720,1749701443097,-898.93,0.00019178,2]
[365487721,1749701443107,-602.73,0.00019178,2]
[365487722,1749701443116,-490.0,0.00019178,2]
[365487723,1749701443126,-490.74669249,0.00019178,2]
[365487724,1749701443138,-500.32033502,0.00019178,2]
[365487725,1749701443147,-250.10195449,0.00019178,2]
[365487726,1749701443157,-490.0,0.00019178,2]
[365487727,1749701443168,-490.0,0.00019178,2]
[365487728,1749701443178,-458.04625584,0.00019178,2]
[365487729,1749701443188,-490.0,0.00019178,2]
[365487730,1749701443198,-1183.85,0.00019178,2]
[365487731,1749701443208,-490.0,0.00019178,2]
[365487732,1749701443218,-492.21587445,0.00019178,2]
[365487733,1749701443228,-490.0,0.00019178,2]
[365487734,1749701443237,-520.69272514,0.00019178,2]
[365487735,1749701443247,-494.8452884,0.00019178,2]
[365487736,1749701443256,-791.39,0.00019178,2]
[365487737,1749701443265,-480.0,0.00019178,2]
[365487738,1749701443275,-486.68955392,0.00019178,2]
[365487739,1749701443284,-480.0,0.00019178,2]
[365487740,1749701443294,-490.0,0.00019178,2]
[365487741,1749701443303,-490.0,0.00019178,2]
[365487742,1749701443313,-490.0,0.00019178,2]
[365487743,1749701443323,-490.0,0.00019178,2]
[365487744,1749701443333,-490.0,0.00019178,2]
[365487745,1749701443343,-168.01525672,0.00019178,2]
[365487746,1749701443352,-490.0,0.00019178,2]
[365487747,1749701443362,-490.0,0.00019178,2]
[365487748,1749701443372,-490.0,0.00019178,2]
[365487749,1749701443382,-500.0,0.00019178,2]
[365487750,1749701443391,-490.0,0.00019178,2]
[365487751,1749701443401,-490.0,0.00019178,2]
[365487752,1749701443411,-487.79794079,0.00019178,2]
[365487753,1749701443420,-229.4592661,0.00019178,2]
[365487754,1749701443429,-490.0,0.00019178,2]
[365487755,1749701443438,-490.0,0.00019178,2]
[365487756,1749701443448,-526.18297253,0.00019178,2]
[365487757,1749701443457,-771.95,0.00019178,2]
[365487758,1749701443466,-751.34,0.00019178,2]
[365487759,1749701443476,-804.43,0.00019178,2]
[365487760,1749701443486,-1396.4,0.00019178,2]
[365487761,1749701443495,-965.07,0.00019178,2]
[365487762,1749701443504,-490.0,0.00019178,2]
[365487763,1749701443515,-490.0,0.00019178,2]
[365487764,1749701443524,-1032.39,0.00019178,2]
[365487765,1749701443533,-1430.21,0.00019178,2]
[365487766,1749701443542,-162.259179,0.00019178,2]
[365487767,1749701443551,-490.0,0.00019178,2]
[365487768,1749701443561,-490.0,0.00019178,2]
[365487769,1749701443570,-490.0,0.00019178,2]
[365487770,1749701443580,-569.77,0.00019178,2]
[365487771,1749701443589,-424.17923867,0.00019178,2]
[365487772,1749701443598,-490.0,0.00019178,2]
[365487773,1749701443608,-739.0,0.00019178,2]
[365487774,1749701443618,-1148.73,0.00019178,2]
[365487775,1749701443627,-1239.11,0.00019178,2]
[365487776,1749701443636,-650.53,0.00019178,2]
[365487777,1749701443646,-755.62,0.00019178,2]
[365487778,1749701443656,-490.0,0.00019178,2]
[365487779,1749701443665,-817.81,0.00019178,2]
[365487780,1749701443674,-490.0,0.00019178,2]
[365487781,1749701443684,-156.619584,0.00019178,2]
[365487782,1749701443694,-459.00146855,0.00019178,2]
[365487783,1749701443704,-490.0,0.00019178,2]
[365487784,1749701443713,-984.15,0.00019178,2]
[365487785,1749701443723,-1260.55,0.00019178,2]
[365487786,1749701443732,-490.0,0.00019178,2]
[365487787,1749701443741,-453.49949211,0.00019178,2]
[365487788,1749701443751,-490.0,0.00019178,2]
[365487789,1749701443762,-490.0,0.00019178,2]
[365487790,1749701443772,-490.0,0.00019178,2]
[365487791,1749701443781,-685.5,0.00019178,2]
[365487792,1749701443791,-490.0,0.00019178,2]
[365487793,1749701443801,-490.0,0.00019178,2]
[365487794,1749701443810,-490.0,0.00019178,2]
[365487795,1749701443820,-455.28029786,0.00019178,2]
[365487796,1749701443830,-490.0,0.00019178,2]
[365487797,1749701443840,-1990.3,0.00019178,2]
[365487798,1749701443850,-460.71397072,0.00019178,2]
[365487799,1749701443859,-793.56,0.00019178,2]
[365487800,1749701443869,-490.0,0.00019178,2]
[365487801,1749701443879,-480.0,0.00019178,2]
[365487802,1749701443888,-1050.4,0.00019178,2]
[365487803,1749701443898,-480.0,0.00019178,2]
[365487804,1749701443908,-490.0,0.00019178,2]
[365487805,1749701443917,-943.03,0.00019178,2]
[365487806,1749701443926,-935.42,0.00019178,2]
[365487807,1749701443936,-822.35,0.00019178,2]
[365487808,1749701443945,-247.81049286,0.00019178,2]
[365487809,1749701443955,-490.0,0.00019178,2]
[365487810,1749701443965,-1267.0,0.00019178,2]
[365487811,1749701443974,-480.0,0.00019178,2]
[365487812,1749701443984,-480.0,0.00019178,2]
[365487813,1749701443993,-1040.55,0.00019178,2]
[365487814,1749701444003,-490.0,0.00019178,2]
[365487815,1749701444014,-490.0,0.00019178,2]
[365487816,1749701444024,-735.06,0.00019178,2]
[365487817,1749701444034,-490.0,0.00019178,2]
[365487818,1749701444043,-1000.0,0.00019178,2]
[365487819,1749701444054,-480.0,0.00019178,2]
[365487820,1749701444063,-490.0,0.00019178,2]
[365487821,1749701444073,-480.0,0.00019178,2]
[365487822,1749701444082,-931.18,0.00019178,2]
[365487823,1749701444094,-490.0,0.00019178,2]
[365487824,1749701444103,-600.6,0.00019178,2]
[365487825,1749701444112,-1187.28,0.00019178,2]
[365487826,1749701444122,-1139.71,0.00019178,2]
[365487827,1749701444131,-480.0,0.00019178,2]
[365487828,1749701444140,-567.44,0.00019178,2]
[365487829,1749701444150,-490.0,0.00019178,2]
[365487830,1749701444159,-683.77,0.00019178,2]
[365487831,1749701444170,-490.0,0.00019178,2]
[365487832,1749701444180,-874.92,0.00019178,2]
[365487833,1749701444190,-490.0,0.00019178,2]
[365487834,1749701444200,-490.0,0.00019178,2]
[365487835,1749701444209,-490.0,0.00019178,2]
[365487836,1749701444218,-708.4,0.00019178,2]
[365487837,1749701444227,-490.0,0.00019178,2]
[365487838,1749701444236,-490.0,0.00019178,2]
[365487839,1749701444246,-200.53855008,0.00019178,2]
[365487840,1749701444256,-156.737765,0.00019178,2]
[365487841,1749701444266,-490.0,0.00019178,2]
[365487842,1749701444276,-274.34,0.00019178,2]
[365487843,1749701444286,-480.0,0.00019178,2]
[365487844,1749701444295,-490.0,0.00019178,2]
[365487845,1749701444304,-490.0,0.00019178,2]
[365487846,1749701444313,-490.0,0.00019178,2]
[365487847,1749701444323,-490.0,0.00019178,2]
[365487848,1749701444332,-490.0,0.00019178,2]
[365487849,1749701444342,-490.0,0.00019178,2]
[365487850,1749701444351,-490.0,0.00019178,2]
[365487851,1749701444360,-490.0,0.00019178,2]
[365487852,1749701444370,-981.97,0.00019178,2]
[365487853,1749701444380,-1865.9,0.00019178,2]
[365487854,1749701444390,-501.07211877,0.00019178,2]
[365487855,1749701444399,-1010.29,0.00019178,2]
[365487856,1749701444409,-1347.37,0.00019178,2]
[365487857,1749701444419,-490.0,0.00019178,2]
[365487858,1749701444428,-250.89419163,0.00019178,2]
[365487859,1749701444438,-1205.2,0.00019178,2]
[365487860,1749701444447,-629.57,0.00019178,2]
[365487861,1749701444456,-961.68,0.00019178,2]
[365487862,1749701444466,-490.0,0.00019178,2]
[365487863,1749701444475,-490.0,0.00019178,2]
[365487864,1749701444485,-480.0,0.00019178,2]
[365487865,1749701444495,-1070.64,0.00019178,2]